bitfinex-derivatives/quotes_ETHF0:USTF0_20250110
["timestamp","ask_amount","ask_price","bid_price","bid_amount"]
[1736537956774,0.3039,3290.4,3290.3,0.30389]
[1736537956975,0.3039,3290.5,3290.4,0.30389]
[1736537957277,2.57948398,3290.6,3289.8,0.8805]
[1736537957580,0.30393,3290.1,3290.0,0.30392]
[1736537957774,3.2078,3290.4,3290.0,40.8]
[1736537957976,0.30392,3290.1,3290.0,40.8]
[1736537958274,0.30392,3290.1,3290.0,41.10393]
[1736537958975,0.30392,3290.1,3290.0,40.8]
[1736537959375,0.30392,3290.1,3290.0,41.10393]
[1736537960277,0.30392,3290.2,3290.1,0.30391]
[1736537960481,0.30392,3290.1,3290.0,41.10392]
[1736537962380,0.30392,3290.2,3290.1,0.30391]
[1736537964083,0.30393,3290.1,3290.0,0.30392]
[1736537964887,0.30392,3290.2,3290.1,0.30391]
[1736537966681,0.30391,3290.3,3290.2,0.3039]
[1736537966881,3.6774,3290.8,3290.7,0.30387]
[1736537967187,3.2078,3290.8,3290.7,0.30387]
[1736537967586,3.2078,3290.8,3290.7,41.10387]
[1736537968884,0.30384,3291.0,3290.9,0.30385]
[1736537969284,0.30383,3291.1,3291.0,0.30383]
[1736537969475,3.2078,3291.2,3291.1,0.30383]
[1736537969674,0.4759,3291.5,3291.4,0.3038]
[1736537969879,0.4712,3291.6,3290.9,3.2078]
[1736537970089,3.2078,3291.8,3291.3,3.2078]
[1736537970283,3.2078,3291.8,3291.4,0.4402]
[1736537970482,0.30378,3291.7,3291.6,0.30378]
[1736537971889,3.2078,3291.8,3291.4,0.4402]
[1736537971890,0.30379,3291.6,3291.5,0.30379]
[1736537972082,5.32218398,3291.8,3291.2,0.4472]
[1736537972284,0.30381,3291.4,3291.3,0.3038]
[1736537972485,5.32218398,3291.8,3291.2,0.4472]
[1736537972790,0.3038,3291.4,3291.3,0.30381]
[1736537974990,0.30381,3291.3,3291.2,0.75101]
[1736537975385,5.32218398,3291.8,3291.2,0.4472]
[1736537975689,0.30381,3291.4,3291.3,0.3038]
[1736537976285,0.3038,3291.5,3291.4,0.3038]
[1736537976985,0.30381,3291.4,3291.3,0.30381]
[1736537977397,0.3038,3291.5,3291.4,0.3038]
[1736537977692,3.51157,3291.8,3291.7,0.30377]
[1736537977985,0.3038,3291.5,3291.4,0.30379]
[1736537978992,0.30377,3291.7,3291.4,0.3038]
[1736537979191,0.3038,3291.5,3291.4,0.3038]
[1736537979392,5.32218398,3291.8,3290.9,3.648]
[1736537979581,0.30379,3291.6,3291.5,0.30378]
[1736537980187,0.30379,3291.6,3291.5,0.30246726]
[1736537980390,0.3038,3291.5,3291.4,0.30379]
[1736537980792,0.30379,3291.6,3291.5,0.30378]
[1736537981295,3.51157,3291.8,3291.7,0.30377]
[1736537981797,0.4603,3291.9,3291.5,0.30378]
[1736537981798,0.30379,3291.6,3291.5,0.30378]
[1736537982191,0.4603,3291.9,3291.3,3.2078]
[1736537982395,0.4603,3291.9,3291.7,0.30377]
[1736537982396,0.30378,3291.8,3291.7,0.30377]
[1736537983396,0.30379,3291.7,3291.6,0.30378]
[1736537983595,0.3038,3291.6,3291.5,0.30379]
[1736537983891,0.30383,3291.1,3291.0,0.30382]
[1736537984288,0.30383,3291.1,3290.9,3.648]
[1736537984289,2.11438398,3291.5,3290.9,3.648]
[1736537984492,0.30383,3291.3,3291.2,0.30381]
[1736537985600,0.30383,3291.3,3290.9,3.648]
[1736537985601,0.30384,3291.1,3291.0,0.30383]
[1736537986902,0.30383,3291.2,3291.1,0.30381]
[1736537987097,0.30383,3291.2,3290.9,3.648]
[1736537987098,0.4557,3291.4,3290.9,3.648]
[1736537987297,0.30382,3291.3,3291.2,0.30381]
[1736537987501,0.4557,3291.4,3290.9,3.648]
[1736537987800,0.30383,3291.2,3291.1,0.30382]
[1736537989992,0.30384,3291.0,3290.9,0.4402]
[1736537990197,0.30386,3290.8,3290.7,41.54876]
[1736537990400,0.4687,3291.1,3290.8,0.30384]
[1736537990401,0.30385,3290.9,3290.8,0.30384]
[1736537992306,0.4687,3291.1,3290.7,41.2449]
[1736537992504,0.30385,3291.0,3290.9,0.30384]
[1736537993106,3.2078,3291.2,3291.1,0.30383]
[1736537993305,3.2078,3291.9,3290.8,5.32218398]
[1736537993602,0.30379,3291.6,3291.5,0.30378]
[1736537994201,0.30379,3291.6,3291.5,41.10378]
[1736538000611,0.30378,3291.7,3291.6,0.30377]
[1736538001304,2.11438398,3291.8,3291.3,0.9302]
[1736538001509,0.30382,3291.2,3291.1,0.30382]
[1736538001706,0.30382,3291.3,3291.2,0.30381]
[1736538002804,0.3038,3291.5,3291.4,0.30379]
[1736538004707,0.30383,3291.2,3291.1,0.30382]
[1736538004906,0.30381,3291.4,3291.3,0.3038]
[1736538005107,2.11438398,3291.5,3290.9,41.716]
[1736538005314,2.11438398,3291.5,3291.1,0.30382]
[1736538005315,0.30383,3291.2,3291.1,0.30382]
[1736538005913,0.30383,3291.2,3291.1,0.30381]
[1736538006114,0.30383,3291.2,3291.1,0.65810781]
[1736538006303,0.30383,3291.2,3291.1,0.30381]
[1736538006509,0.30383,3291.2,3291.1,0.65811687]
[1736538007014,0.30383,3291.2,3291.1,0.30381]
[1736538007809,2.11438398,3291.5,3290.9,41.716]
[1736538008102,0.30382,3291.3,3291.2,0.30381]
[1736538008907,2.11438398,3291.5,3291.3,0.3038]
[1736538008908,0.30381,3291.4,3291.3,0.3038]
[1736538009610,0.3038,3291.6,3291.5,0.30378]
[1736538009913,3.51153,3292.2,3292.1,0.30374]
[1736538010105,3.2078,3292.2,3292.1,0.30374]
[1736538010303,3.2078,3292.6,3292.1,41.15394287]
[1736538010504,3.2078,3292.6,3292.5,0.30369]
[1736538010708,3.2078,3292.6,3292.5,0.65748729]
[1736538010913,0.30366,3293.0,3292.9,0.30366]
[1736538011508,2.11438398,3293.1,3292.5,3.2078]
[1736538011713,2.11438398,3292.8,3292.3,0.459]
[1736538011916,2.11438398,3292.8,3292.1,40.8]
[1736538011917,0.4645,3292.7,3292.1,40.8]
[1736538012108,2.11438398,3292.5,3292.1,40.8]
[1736538012314,0.30373,3292.2,3292.1,0.30374]
[1736538012707,0.30375,3292.1,3292.0,0.30374]
[1736538013211,2.11438398,3292.5,3291.9,41.56635]
[1736538013212,0.30375,3292.0,3291.9,41.56635]
[1736538013409,0.30374,3292.1,3292.0,0.30374]
[1736538014018,2.11438398,3292.5,3291.9,41.2626]
[1736538014316,0.30373,3292.3,3292.2,0.30372]
[1736538015112,3.2078,3292.6,3291.9,41.2626]
[1736538015311,0.30374,3292.2,3292.1,0.30373]
[1736538017611,0.30375,3292.1,3292.0,0.30374]
[1736538017815,5.32218398,3292.2,3291.6,3.2078]
[1736538018010,0.30377,3291.7,3291.6,3.51158]
[1736538018612,0.9147,3292.0,3291.6,3.2078]
[1736538018818,0.30376,3291.9,3291.8,0.30376]
[1736538019018,0.9147,3292.0,3291.6,3.2078]
[1736538019213,0.30377,3291.8,3291.7,0.30377]
[1736538019415,1.21845,3292.0,3291.9,0.30376]
[1736538020321,0.76765,3292.0,3291.9,0.30376]
[1736538020720,0.30375,3292.0,3291.9,0.30376]
[1736538020913,0.4456,3292.3,3291.7,0.4722]
[1736538021114,0.30372,3292.4,3292.3,0.30371]
[1736538022823,0.30372,3292.4,3292.3,41.10371]
[1736538026825,0.30372,3292.4,3292.3,40.8]
[1736538027422,0.30372,3292.4,3291.9,1.23389]
[1736538027423,2.11438398,3292.5,3291.9,0.4745]
[1736538027622,0.30372,3292.3,3292.2,0.30371]
[1736538027823,0.30374,3292.2,3292.1,0.30372]
[1736538028431,0.30375,3292.0,3291.9,41.10375]
[1736538028631,0.30375,3292.0,3291.9,40.8]
[1736538028930,0.30375,3292.0,3291.9,41.10376]
[1736538030432,0.78225,3292.0,3291.9,41.10376]
[1736538032427,0.78225,3292.0,3291.9,0.30376]
[1736538032629,0.4785,3292.0,3291.9,0.30376]
[1736538032823,3.2078,3292.2,3292.1,0.30374]
[1736538033026,3.2078,3292.2,3292.1,41.10374]
[1736538033832,3.51153,3292.2,3292.1,41.10374]
[1736538034034,0.30373,3292.3,3292.2,0.30372]
[1736538034538,3.2078,3292.6,3292.1,44.0078]
[1736538034833,0.9094,3292.9,3292.2,0.9286]
[1736538035135,0.4413,3292.9,3292.8,0.30367]
[1736538035539,0.30366,3293.0,3292.6,0.4676]
[1736538035727,3.2078,3293.1,3292.6,3.6754]
[1736538035929,3.2078,3293.1,3293.0,0.30365]
[1736538036430,15.18618109,3293.7,3293.0,0.30365]
[1736538036431,0.30359,3293.8,3293.1,0.75912]
[1736538036730,0.30359,3293.8,3293.7,0.30359]
[1736538036942,0.30359,3293.8,3293.7,41.10359]
[1736538037328,3.2078,3293.9,3293.8,0.30358]
[1736538037329,0.30357,3293.9,3293.8,0.30358]
[1736538037731,5.79028398,3294.3,3293.7,40.8]
[1736538037932,3.51134,3294.3,3294.2,0.30354]
[1736538038133,3.2078,3294.3,3294.2,0.30354]
[1736538038331,0.4413,3294.4,3294.3,0.30353]
[1736538038633,0.30352,3294.5,3294.4,0.30352]
[1736538038826,2.11438398,3294.6,3293.9,3.2078]
[1736538039029,0.30352,3294.5,3294.4,0.30352]
[1736538039434,0.30351,3294.6,3294.5,0.30351]
[1736538039829,3.2078,3294.7,3294.0,2.87329398]
[1736538040029,3.2078,3294.7,3294.6,0.30351]
[1736538040439,3.2078,3294.7,3294.6,41.10351]
[1736538040736,3.5113,3294.7,3294.6,40.8]
[1736538040932,3.2078,3294.7,3294.4,0.30352]
[1736538041238,2.11438398,3294.6,3294.3,0.30353]
[1736538041732,2.11438398,3294.6,3294.2,41.2652]
[1736538041733,0.30353,3294.4,3294.2,0.4652]
[1736538041939,0.30353,3294.3,3294.2,0.76874]
[1736538042135,2.11438398,3294.3,3293.9,3.2078]
[1736538042330,0.30356,3294.0,3293.9,3.51137]
[1736538042931,5.32218398,3294.3,3293.7,0.30359]
[1736538043131,0.30358,3293.8,3293.7,0.30359]
[1736538043344,0.30357,3294.0,3293.8,0.30357]
[1736538043541,0.30357,3294.0,3293.9,0.30357]
[1736538043731,0.30357,3293.9,3293.8,0.30358]
[1736538043932,5.32218398,3294.3,3293.8,0.30358]
[1736538044128,5.32218398,3294.3,3293.6,0.4652]
[1736538044129,0.30357,3294.0,3293.9,0.30357]
[1736538044738,5.32218398,3294.3,3293.6,0.4652]
[1736538044739,0.30357,3293.9,3293.8,0.30358]
[1736538045035,5.32218398,3294.3,3293.6,0.4652]
[1736538045238,0.30357,3294.0,3293.9,0.30357]
[1736538045839,0.30357,3293.9,3293.8,0.30357]
[1736538046240,0.30356,3294.0,3293.8,0.30357]
[1736538046445,0.30356,3294.0,3293.8,41.10357]
[1736538046639,0.30356,3294.0,3293.9,0.30357]
[1736538047040,5.32218398,3294.3,3293.8,40.8]
[1736538047349,5.32218398,3294.3,3293.5,0.7543]
[1736538047350,0.3036,3293.6,3293.5,0.7543]
[1736538047644,0.3036,3293.7,3293.6,0.3036]
[1736538047833,0.3036,3293.7,3293.6,41.1036]
[1736538048037,0.30362,3293.4,3293.3,3.51142]
[1736538048647,0.30368,3292.7,3292.6,0.30368]
[1736538048942,0.30367,3292.8,3292.7,0.30367]
[1736538049138,2.11438398,3293.0,3292.8,0.30367]
[1736538049139,0.30367,3292.9,3292.8,0.30367]
[1736538049545,0.30366,3293.0,3292.9,0.30366]
[1736538053548,2.56338398,3293.3,3292.7,40.8]
[1736538053947,0.30367,3292.8,3292.7,41.10368]
[1736538055549,3.51147,3292.8,3292.7,40.8]
[1736538055938,3.97527,3292.8,3292.7,40.8]
[1736538056747,4.4308,3292.8,3292.2,0.30372]
[1736538057051,0.30372,3292.3,3292.2,0.30372]
[1736538057252,0.30372,3292.3,3292.2,41.10372]
[1736538058055,0.30369,3292.7,3292.6,0.30368]
[1736538058351,0.30371,3292.5,3292.4,0.3037]
[1736538058649,3.6716,3292.8,3292.4,3.2078]
[1736538058650,0.4638,3292.8,3292.4,3.2078]
[1736538058849,0.30365,3293.1,3293.0,0.30365]
[1736538059752,3.51144,3293.2,3293.1,0.30364]
[1736538060153,0.30366,3293.1,3293.0,0.30365]
[1736538060348,3.2078,3293.2,3293.0,0.30365]
[1736538060547,3.2078,3293.2,3292.6,0.8711]
[1736538060746,3.2078,3293.2,3292.9,0.30366]
[1736538061250,0.30366,3293.0,3292.9,0.30366]
[1736538062355,0.30365,3293.1,3293.0,0.30365]
[1736538063348,0.30367,3292.9,3292.6,0.8711]
[1736538063559,2.11438398,3293.1,3292.6,0.8711]
[1736538063750,2.11438398,3293.1,3292.5,0.3037]
[1736538063751,0.30369,3292.7,3292.5,0.3037]
[1736538063949,2.11438398,3293.1,3292.5,0.4387]
[1736538064156,3.2078,3293.2,3292.5,0.4387]
[1736538064353,0.30367,3292.9,3292.8,0.30366]
[1736538065146,0.30364,3293.1,3293.0,0.30365]
[1736538067263,3.51144,3293.2,3293.1,0.30364]
[1736538067455,3.2078,3293.2,3293.1,0.30364]
[1736538068060,3.51144,3293.2,3293.1,40.8]
[1736538068959,0.30364,3293.1,3293.0,0.30365]
[1736538069463,0.30364,3293.1,3293.0,41.10365]
[1736538069866,0.30364,3293.1,3293.0,40.8]
[1736538070766,0.30365,3293.0,3292.9,0.30366]
[1736538071163,0.30365,3293.0,3292.6,0.4586]
[1736538071164,0.30368,3292.7,3292.6,0.76228]
[1736538072265,0.30368,3292.7,3292.6,0.30368]
[1736538073564,0.30368,3292.7,3292.6,41.10368]
[1736538075766,0.30368,3292.7,3292.4,3.2078]
[1736538075767,0.3037,3292.5,3292.4,0.30371]
[1736538076354,0.30369,3292.7,3292.6,0.30368]
[1736538077064,0.4776,3293.1,3292.4,3.2078]
[1736538077275,0.30365,3293.1,3293.0,0.30364]
[1736538077964,0.30366,3293.0,3292.9,0.30366]
[1736538078168,0.30366,3292.9,3292.8,0.438]
[1736538078363,0.30367,3292.8,3292.7,0.30368]
[1736538078564,0.30367,3292.8,3292.7,0.65694771]
[1736538079465,0.30367,3292.8,3292.7,0.30368]
[1736538080366,3.9669,3293.2,3292.5,0.438]
[1736538080367,0.30367,3292.9,3292.8,0.30366]
[1736538082562,3.9669,3293.2,3293.1,0.30364]
[1736538082563,3.51145,3293.2,3293.1,0.30364]
[1736538083260,3.2078,3293.2,3293.1,0.30364]
[1736538083466,0.30361,3293.5,3293.4,0.30361]
[1736538084060,0.30361,3293.5,3293.4,41.10361]
[1736538085269,0.3036,3293.7,3293.6,0.30359]
[1736538086165,0.4378,3293.8,3293.4,40.8]
[1736538086374,0.30363,3293.3,3293.2,0.74383]
[1736538086668,3.96682,3293.6,3293.1,0.30364]
[1736538086669,0.30364,3293.2,3293.1,0.30364]
[1736538087172,0.30366,3293.0,3292.9,0.30365]
[1736538088368,0.30365,3293.2,3293.1,0.30363]
[1736538088569,0.75904,3293.5,3292.8,3.2078]
[1736538088762,0.30364,3293.2,3293.1,0.30364]
[1736538089069,0.30366,3293.1,3293.0,0.30365]
[1736538089456,5.32218398,3293.6,3292.6,41.6898]
[1736538089668,0.30367,3292.9,3292.8,0.30367]
[1736538090561,0.4621,3293.0,3292.6,41.6898]
[1736538090759,0.4621,3293.0,3292.9,0.30366]
[1736538090760,0.30366,3293.0,3292.9,0.30366]
[1736538091064,0.30362,3293.5,3293.4,0.30361]
[1736538091263,0.3036,3293.6,3293.5,0.3036]
[1736538091472,0.30361,3293.5,3293.4,0.75681]
[1736538091770,0.75896,3293.8,3293.0,0.30365]
[1736538091771,0.30365,3293.1,3293.0,0.30365]
[1736538091965,0.30365,3293.1,3293.0,0.65644533]
[1736538092168,0.30365,3293.1,3293.0,0.30365]
[1736538092569,0.4385,3293.3,3292.9,3.2078]
[1736538092873,0.4385,3293.3,3293.2,0.30364]
[1736538092874,0.74213,3293.3,3293.2,0.30364]
[1736538093077,0.4385,3293.3,3292.9,3.2078]
[1736538093372,0.30365,3293.2,3293.1,0.30364]
[1736538093576,0.4385,3293.3,3292.9,3.51146]
[1736538093577,0.30365,3293.0,3292.9,3.51146]
[1736538094168,2.11438398,3293.2,3292.6,41.2531]
[1736538094474,0.30368,3292.8,3292.7,0.30367]
[1736538096764,0.30374,3292.2,3292.1,0.30372]
[1736538096965,0.30374,3292.2,3292.1,0.65685089]
[1736538097174,0.30374,3292.2,3292.1,41.10372]
[1736538097370,0.30374,3292.1,3292.0,0.4454]
[1736538097675,0.30374,3292.1,3292.0,0.74914]
[1736538097874,0.30374,3292.1,3292.0,41.54914]
[1736538098374,0.30373,3292.3,3292.2,0.30372]
[1736538099469,0.30373,3292.2,3292.1,0.75943]
[1736538099967,0.30373,3292.3,3292.2,0.30372]
[1736538100168,2.11438398,3292.5,3292.1,0.4557]
[1736538100475,0.30373,3292.2,3292.1,0.75943]
[1736538102674,4.275,3292.9,3292.1,0.75943]
[1736538102675,0.3037,3292.6,3292.5,0.30369]
[1736538103069,0.3037,3292.6,3292.2,0.75933]
[1736538103274,0.3037,3292.6,3292.1,3.6635]
[1736538103275,2.11438398,3292.8,3292.1,3.6635]
[1736538103469,0.3037,3292.6,3292.5,0.30369]
[1736538106469,0.30372,3292.4,3292.3,0.30371]
[1736538108583,0.75922,3292.7,3292.1,3.6635]
[1736538108880,0.30373,3292.3,3292.2,0.30372]
[1736538109077,0.30373,3292.2,3292.1,3.96723]
[1736538109274,0.30373,3292.3,3292.2,0.30371]
[1736538109471,0.30372,3292.4,3292.3,0.3037]
[1736538110581,1.68425,3293.0,3292.1,4.42283]
[1736538110773,0.9251,3293.0,3292.5,3.2078]
[1736538110975,0.30366,3293.0,3292.9,0.30365]
[1736538111683,3.51145,3293.1,3293.0,0.30365]
[1736538112383,2.11438398,3293.4,3292.9,3.2078]
[1736538112384,0.30363,3293.4,3292.9,3.2078]
[1736538112678,0.4507,3293.6,3292.9,3.2078]
[1736538112885,0.30365,3293.2,3293.1,0.30363]
[1736538115884,0.30365,3293.1,3293.0,0.30364]
[1736538116988,0.30364,3293.2,3293.1,0.30363]
[1736538117284,0.30365,3293.1,3293.0,0.30364]
[1736538117681,2.41803398,3293.1,3293.0,0.30364]
[1736538118481,2.11438398,3293.4,3292.9,3.2078]
[1736538118687,0.30363,3293.3,3293.2,0.30363]
[1736538119988,0.30363,3293.3,3293.2,41.10363]
[1736538120191,0.30363,3293.3,3293.2,41.10364]
[1736538120385,2.11438398,3293.4,3293.1,0.30364]
[1736538120583,0.30364,3293.2,3293.1,0.30364]
[1736538120882,0.30364,3293.2,3293.1,41.10364]
[1736538121492,0.30364,3293.2,3293.1,40.8]
[1736538121686,0.30364,3293.2,3293.1,41.10364]
[1736538124988,0.30364,3293.2,3293.1,40.8]
[1736538125294,0.30365,3293.0,3292.9,3.2078]
[1736538125492,2.41803398,3293.0,3292.9,3.2078]
[1736538125794,2.11438398,3293.0,3292.5,3.2078]
[1736538125994,0.30371,3292.4,3292.3,0.3037]
[1736538126492,0.30371,3292.4,3292.3,41.1037]
[1736538127895,0.30371,3292.5,3292.4,0.3037]
[1736538128089,0.30369,3292.7,3292.6,0.30368]
[1736538130394,0.30366,3293.0,3292.6,3.2078]
[1736538130599,0.4715,3293.1,3293.0,0.30365]
[1736538130795,2.11438398,3293.3,3292.7,0.8853]
[1736538131095,0.30367,3292.9,3292.8,0.30366]
[1736538131297,0.30367,3292.9,3292.8,40.8]
[1736538131898,0.30367,3292.9,3292.8,41.10367]
[1736538132096,0.30367,3292.9,3292.8,40.8]
[1736538132296,0.30367,3292.9,3292.8,41.10367]
[1736538132799,0.30367,3292.9,3292.8,40.8]
[1736538133400,0.30369,3292.7,3292.6,0.30368]
[1736538133605,2.11438398,3293.0,3292.4,1.20917]
[1736538133606,0.30367,3292.9,3292.4,1.20917]
[1736538133795,0.30366,3293.1,3293.0,0.30365]
[1736538133998,0.9212,3293.2,3292.6,4.43013]
[1736538134300,1.22484,3293.2,3293.1,0.30364]
[1736538134998,0.9212,3293.2,3292.6,3.6709]
[1736538135198,2.11438398,3293.0,3292.6,3.6709]
[1736538135401,0.30366,3293.0,3292.9,0.30366]
[1736538135694,0.30365,3293.1,3293.0,0.30364]
[1736538137395,0.9212,3293.2,3292.9,0.30366]
[1736538137396,0.30367,3293.0,3292.9,0.30366]
[1736538137601,2.11438398,3293.0,3292.6,3.2078]
[1736538137801,0.30368,3292.7,3292.6,3.51149]
[1736538139992,0.30368,3292.7,3292.6,0.30369]
[1736538142902,0.30371,3292.4,3292.2,0.30373]
[1736538143205,0.30371,3292.4,3292.3,0.30372]
[1736538143391,0.30371,3292.4,3292.3,41.10372]
[1736538143999,0.30371,3292.4,3292.3,40.8]
[1736538144200,0.30373,3292.3,3292.2,0.30372]
[1736538145002,2.11438398,3292.4,3292.1,3.2078]
[1736538145200,0.30374,3292.1,3292.0,0.30374]
[1736538145902,3.2078,3292.5,3291.9,40.8]
[1736538146106,3.2078,3292.5,3292.4,0.30371]
[1736538146307,3.5115,3292.5,3292.4,0.30371]
[1736538146704,3.2078,3292.5,3292.4,0.30371]
[1736538147113,3.5115,3292.5,3292.4,0.30371]
[1736538148605,3.2078,3292.5,3292.1,0.4578]
[1736538148802,0.4668,3292.4,3292.1,0.4578]
[1736538148997,0.77051,3292.4,3292.3,0.30372]
[1736538149804,0.4668,3292.4,3292.1,0.4578]
[1736538150007,0.30375,3292.0,3291.9,41.10375]
[1736538150306,0.30378,3291.6,3291.5,0.76439]
[1736538150506,3.2078,3292.0,3291.5,0.4606]
[1736538150712,0.3038,3291.4,3291.3,0.7386]
[1736538151012,0.3038,3291.4,3291.3,0.73861]
[1736538151310,0.3038,3291.5,3291.4,0.3038]
[1736538151501,3.2078,3291.6,3291.1,3.6819]
[1736538151711,0.30382,3291.2,3291.1,3.98572]
[1736538152111,0.30382,3291.2,3291.1,0.4741]
[1736538152612,0.30382,3291.2,3291.1,0.77793]
[1736538152806,0.30382,3291.2,3291.1,0.4741]
[1736538153006,1.06341,3291.1,3290.3,0.3039]
[1736538153216,2.11438398,3290.8,3290.2,0.4454]
[1736538153411,2.11438398,3290.8,3290.3,0.3039]
[1736538153610,2.11438398,3290.8,3290.2,0.4454]
[1736538154019,0.30389,3290.5,3290.3,0.3039]
[1736538154517,0.30389,3290.5,3290.4,0.30389]
[1736538155109,0.30389,3290.5,3290.2,0.4454]
[1736538155417,0.30389,3290.5,3290.4,0.30389]
[1736538156607,0.4592,3290.9,3290.2,0.4454]
[1736538156816,0.4592,3290.9,3290.5,0.30388]
[1736538157017,0.30387,3290.7,3290.5,0.30388]
[1736538157218,0.30387,3290.7,3290.2,0.4454]
[1736538157419,0.30387,3290.7,3290.6,41.10388]
[1736538159711,0.30387,3290.7,3290.6,40.8]
[1736538160315,0.30387,3290.7,3290.6,41.10388]
[1736538160914,0.30387,3290.8,3290.7,0.30386]
[1736538161209,0.30386,3290.8,3290.7,0.30387]
[1736538161813,0.30387,3290.7,3290.6,40.8]
[1736538162118,0.3039,3290.3,3290.0,0.4788]
[1736538162312,0.30392,3290.1,3290.0,0.78273]
[1736538162714,0.30392,3290.1,3290.0,0.4788]
[1736538163017,3.6724,3290.2,3289.5,0.30397]
[1736538163216,2.41834398,3289.7,3289.5,0.30397]
[1736538163417,2.41834398,3289.7,3289.3,0.458]
[1736538163418,2.11438398,3289.7,3289.3,0.458]
[1736538163812,2.41834398,3289.7,3289.5,0.30397]
[1736538164012,2.11438398,3289.7,3289.3,0.458]
[1736538164209,0.30399,3289.4,3289.3,0.458]
[1736538164517,3.2078,3289.6,3289.3,0.458]
[1736538164518,0.76857,3289.6,3289.3,0.458]
[1736538164709,0.30398,3289.5,3289.3,0.458]
[1736538164913,0.76857,3289.6,3289.5,0.30398]
[1736538165314,0.30398,3289.5,3289.4,0.30398]
[1736538165519,0.30398,3289.5,3289.3,0.76199]
[1736538165920,0.30398,3289.5,3289.4,0.30399]
[1736538166118,0.30399,3289.4,3289.3,0.30399]
[1736538166418,0.30398,3289.5,3289.4,0.30398]
[1736538166619,0.30399,3289.4,3289.3,0.30399]
[1736538166823,0.304,3289.3,3289.2,0.304]
[1736538168021,0.30399,3289.4,3289.3,0.304]
[1736538170426,0.4646,3289.6,3289.1,3.2078]
[1736538170614,0.76857,3289.6,3289.5,0.30398]
[1736538171330,0.76857,3289.6,3289.5,40.8]
[1736538171626,0.30401,3289.2,3289.1,0.30401]
[1736538172020,0.30401,3289.2,3289.1,41.10401]
[1736538174218,0.30398,3289.5,3289.3,0.304]
[1736538174522,0.30398,3289.5,3289.4,0.30399]
[1736538174717,0.4646,3289.6,3289.1,40.8]
[1736538175023,0.30403,3289.0,3288.9,0.30402]
[1736538175229,2.11438398,3289.1,3288.7,3.2078]
[1736538175422,0.30404,3288.8,3288.7,3.51185]
[1736538175822,0.30404,3288.8,3288.7,44.31185]
[1736538176231,0.30404,3288.8,3288.7,44.0078]
[1736538176432,0.30404,3288.8,3288.7,44.31185]
[1736538176617,0.30404,3288.8,3288.7,44.0078]
[1736538176928,2.41842398,3288.8,3288.7,44.0078]
[1736538177129,2.41842398,3288.8,3288.7,44.31185]
[1736538177336,0.30404,3288.8,3288.7,44.31185]
[1736538177923,0.30404,3288.8,3288.7,41.10405]
[1736538178122,0.30404,3288.8,3288.7,40.8]
[1736538178325,2.41842398,3288.8,3288.7,40.8]
[1736538178529,0.76015,3288.7,3288.2,0.9006]
[1736538178725,2.41847398,3288.3,3288.2,1.20469]
[1736538178930,2.41847398,3288.3,3288.2,42.00469]
[1736538179425,2.41847398,3288.3,3288.2,1.20469]
[1736538180031,2.41847398,3288.3,3288.2,42.00469]
[1736538180326,0.30409,3288.3,3288.2,42.00469]
[1736538180528,0.30409,3288.4,3288.3,0.30408]
[1736538181432,0.30409,3288.3,3288.2,42.00469]
[1736538181931,0.30408,3288.4,3288.3,0.30408]
[1736538183126,2.58798398,3288.6,3288.2,41.7006]
[1736538183320,2.41847398,3288.3,3288.2,40.8]
[1736538183526,0.30412,3288.0,3287.9,0.30412]
[1736538184129,0.30411,3288.1,3288.0,0.30411]
[1736538186033,0.30412,3288.0,3287.9,41.10412]
[1736538186230,2.41850398,3288.0,3287.9,41.10412]
[1736538187232,2.11438398,3288.0,3287.9,41.10412]
[1736538187535,0.30411,3288.1,3288.0,0.30412]
[1736538187727,0.4435,3288.2,3287.9,40.8]
[1736538188034,3.2078,3288.3,3288.2,0.3041]
[1736538188530,1.60408,3288.4,3288.0,0.4518]
[1736538188731,1.60408,3288.4,3288.3,0.30409]
[1736538188933,1.3,3288.4,3288.3,0.30409]
[1736538189436,1.25357,3288.6,3288.5,0.30407]
[1736538190229,0.30409,3288.4,3288.3,0.30408]
[1736538190829,0.30407,3288.5,3288.4,0.30406]
[1736538191128,2.41844398,3288.7,3288.6,0.30406]
[1736538192134,0.30408,3288.5,3288.4,0.30407]
[1736538195536,0.76004,3289.2,3288.2,0.4399]
[1736538195537,3.02697803,3306.5,3288.3,3.2078]
[1736538195740,3.02697803,3306.5,3289.1,0.30401]
[1736538195741,0.30401,3289.2,3289.1,0.30401]
[1736538196039,0.304,3289.3,3289.2,0.304]
[1736538196433,0.4684,3289.4,3289.3,0.304]
[1736538196738,0.4592,3289.8,3289.2,0.76002]
[1736538196947,0.30396,3289.7,3289.6,0.30396]
[1736538197234,0.30398,3289.6,3289.5,0.30397]
[1736538197439,0.30399,3289.5,3289.4,0.30398]
[1736538197739,0.30399,3289.5,3289.4,0.30399]
[1736538198540,2.41836398,3289.6,3289.5,0.30398]
[1736538198741,2.41836398,3289.6,3289.4,0.30398]
[1736538198742,0.30399,3289.5,3289.4,0.30398]
[1736538199237,0.30399,3289.5,3289.1,3.2078]
[1736538199238,0.304,3289.2,3289.1,3.5118]
[1736538200330,2.11438398,3289.6,3289.1,3.2078]
[1736538200532,0.304,3289.3,3289.2,0.304]
[1736538201138,2.11438398,3289.6,3289.1,3.2078]
[1736538201342,2.11438398,3289.6,3289.3,0.30399]